fUST/lending_fUST_20240216
["ID","MTS","AMOUNT","RATE_DAILY","PERIOD"]
[314131860,1708015838880,-161.5894657,0.00025803,2]
[314131862,1708015838889,-1048.6712862,0.00025848,2]
[314131864,1708015838898,-167.089435,0.000261,2]
[314131866,1708015838907,-26490.84856991,0.00026191,3]
[314131867,1708015838916,-3232.52313425,0.00026191,2]
[314131870,1708015838926,-167.089435,0.00026821,2]
[314131871,1708015838935,-4008.40186189,0.00027288,2]
[314131873,1708015838944,-169.294684,0.00027375,2]
[314131875,1708015838953,-1048.67128617,0.00027389,2]
[314131877,1708015838962,-500.0,0.00027541,2]
[314131879,1708015838972,-167.089435,0.00027542,2]
[314131881,1708015838980,-200.0,0.00027863,15]
[314131883,1708015838990,-360.0,0.00027863,15]
[314131885,1708015838999,-250.0,0.00028,2]
[314131887,1708015839008,-1003.64702236,0.00028573,2]
[314131889,1708015839018,-50000.0,0.00028838,5]
[314131891,1708015839027,-1048.67128617,0.0002893,2]
[314131893,1708015839036,-155.0,0.00028999,2]
[314131895,1708015839044,-2116.84,0.00029999,2]
[314131897,1708015839053,-2116.84,0.00029999,2]
[314131899,1708015839062,-2116.84,0.00029999,2]
[314131901,1708015839072,-2116.84,0.00029999,2]
[314131903,1708015839081,-2116.84,0.00029999,2]
[314131905,1708015839091,-2116.84,0.00029999,2]
[314131907,1708015839100,-2116.84,0.00029999,2]
[314131909,1708015839109,-2049.96,0.00029999,2]
[314131911,1708015839118,-184519.85,0.0003,7]
[314131913,1708015839127,-155.0,0.00030369,2]
[314131915,1708015839136,-1048.67128617,0.0003047,2]
[314131917,1708015839145,-200.0,0.0003065,15]
[314131919,1708015839155,-200.0,0.0003065,15]
[314131921,1708015839164,-382.0,0.0003065,15]
[314131922,1708015839173,-620.14787872,0.00030858,2]
[314131924,1708015839182,-163.0736131,0.00030959,2]
[314131926,1708015839191,-153.0,0.00031156,2]
[314131928,1708015839201,-160.1663701,0.00031156,2]
[314131930,1708015839209,-169.405119,0.00031225,2]
[314131932,1708015839218,-155.0,0.00031739,2]
[314131934,1708015839227,-222.27576941,0.00031978,4]
[314131936,1708015839237,-2049.96,0.00031999,2]
[314131938,1708015839246,-500.0,0.00031999,7]
[314131940,1708015839255,-197.33585836,0.00031999,7]
[314131942,1708015839264,-500.0,0.00031999,7]
[314131944,1708015839273,-500.0,0.00031999,7]
[314131946,1708015839282,-499.96128475,0.00031999,7]
[314131948,1708015839291,-500.0,0.00031999,7]
[314131949,1708015839300,-500.0,0.00031999,7]
[314131951,1708015839310,-645.68833248,0.00031999,7]
[314131953,1708015839319,-435.19685949,0.00031999,7]
[314131955,1708015839330,-500.0,0.00031999,7]
[314131957,1708015839342,-500.0,0.00031999,7]
[314131959,1708015839352,-500.0,0.00031999,7]
[314131961,1708015839361,-500.0,0.00031999,7]
[314131963,1708015839370,-500.0,0.00031999,7]
[314131965,1708015839380,-500.0,0.00031999,7]
[314131967,1708015839389,-500.0,0.00031999,7]
[314131969,1708015839398,-500.0,0.00031999,7]
[314131971,1708015839408,-500.0,0.00031999,7]
[314131973,1708015839417,-500.0,0.00031999,7]
[314131975,1708015839429,-500.0,0.00031999,7]
[314131977,1708015839437,-500.0,0.00031999,7]
[314131979,1708015839447,-500.0,0.00031999,7]
[314131981,1708015839456,-500.0,0.00031999,7]
[314131983,1708015839465,-298.97829401,0.00031999,7]
[314131985,1708015839474,-500.0,0.00031999,7]
[314131987,1708015839483,-500.0,0.00031999,7]
[314131989,1708015839492,-500.0,0.00031999,7]
[314131991,1708015839500,-500.0,0.00031999,7]
[314131993,1708015839510,-483.94311142,0.00031999,7]
[314131995,1708015839518,-1446.742848,0.00032,3]
[314131997,1708015839528,-792.31320463,0.00032,2]
[314131999,1708015839537,-111307.21220975,0.00032,5]
[314132001,1708015839547,-1048.67128617,0.00032011,2]
[314132003,1708015839556,-300.0,0.00032272,2]
[314132005,1708015839567,-4008.40186189,0.00032288,2]
[314132006,1708015839576,-153.0,0.00032329,2]
[314132008,1708015839585,-153.0,0.00032329,2]
[314132010,1708015839595,-620.00739394,0.00032401,2]
[314132012,1708015839605,-300.0,0.00032545,2]
[314132014,1708015839614,-500.0,0.00032684,2]
[314132016,1708015839623,-300.0,0.00032818,2]
[314132018,1708015839633,-158.74,0.00032847,35]
[314132020,1708015839642,-5473.0,0.00032847,35]
[314132022,1708015839651,-3265.0,0.00032847,35]
[314132024,1708015839660,-4212.0,0.00032847,35]
[314132026,1708015839669,-150.68,0.00032857,35]
[314132028,1708015839678,-150.57,0.00032857,35]
[314132030,1708015839687,-169.57,0.00032857,35]
[314132032,1708015839697,-150.91,0.00032857,35]
[314132035,1708015839707,-182.3,0.00032857,35]
[314132038,1708015839716,-150.5,0.00032857,35]
[314132041,1708015839725,-150.5,0.00032857,35]
[314132043,1708015839734,-5473.0,0.00032857,35]
[314132045,1708015839743,-3265.0,0.00032857,35]
[314132047,1708015839752,-4212.0,0.00032857,35]
[314132049,1708015839761,-150.5,0.0003286,35]
[314132051,1708015839770,-150.5,0.00032867,35]
[314132060,1708015839854,-150.5,0.00032867,35]
[314132063,1708015839864,-150.5,0.00032867,35]
[314132065,1708015839873,-150.5,0.00032867,35]
[314132066,1708015839882,-150.5,0.00032867,35]
[314132068,1708015839892,-150.5,0.00032867,35]
[314132070,1708015839901,-150.5,0.00032867,35]
[314132072,1708015839910,-5473.0,0.00032867,35]
[314132074,1708015839920,-3265.0,0.00032867,35]
[314132076,1708015839929,-4212.0,0.00032867,35]
[314132079,1708015839939,-150.5,0.0003287,35]
[314132080,1708015839948,-160.0,0.00032875,10]
[314132082,1708015839957,-160.0,0.00032875,10]
[314132084,1708015839966,-160.0,0.00032875,10]
[314132086,1708015839975,-237.99635956,0.00032875,10]
[314132088,1708015839984,-253.39231964,0.00032876,7]
[314132090,1708015839993,-500.0,0.00032876,7]
[314132092,1708015840002,-580.37169468,0.00032876,7]
[314132094,1708015840011,-500.0,0.00032876,7]
[314132096,1708015840021,-500.0,0.00032876,7]
[314132098,1708015840030,-500.0,0.00032876,7]
[314132100,1708015840039,-500.0,0.00032876,7]
[314132102,1708015840048,-500.0,0.00032876,7]
[314132104,1708015840057,-500.0,0.00032876,7]
[314132106,1708015840067,-500.0,0.00032876,7]
[314132108,1708015840077,-500.0,0.00032876,7]
[314132110,1708015840086,-500.0,0.00032876,7]
[314132112,1708015840095,-500.0,0.00032876,7]
[314132114,1708015840104,-500.0,0.00032876,7]
[314132116,1708015840112,-500.0,0.00032876,7]
[314132118,1708015840121,-500.0,0.00032876,7]
[314132120,1708015840130,-500.0,0.00032876,7]
[314132122,1708015840140,-500.0,0.00032876,7]
[314132124,1708015840149,-500.0,0.00032876,7]
[314132126,1708015840158,-500.0,0.00032876,7]
[314132128,1708015840167,-500.0,0.00032876,7]
[314132130,1708015840176,-500.0,0.00032876,7]
[314132132,1708015840185,-500.0,0.00032876,7]
[314132134,1708015840194,-500.0,0.00032876,7]
[314132136,1708015840205,-500.0,0.00032876,7]
[314132138,1708015840214,-500.0,0.00032876,7]
[314132140,1708015840223,-500.0,0.00032876,7]
[314132141,1708015840232,-500.0,0.00032876,7]
[314132143,1708015840241,-500.0,0.00032876,7]
[314132145,1708015840250,-396.51386456,0.00032876,7]
[314132147,1708015840259,-460.0,0.00032876,7]
[314132149,1708015840268,-500.0,0.00032876,7]
[314132151,1708015840277,-392.64141406,0.00032876,7]
[314132152,1708015840287,-500.0,0.00032876,7]
[314132153,1708015840296,-239.15285987,0.00032876,7]
[314132154,1708015840305,-500.0,0.00032876,7]
[314132155,1708015840314,-422.59488046,0.00032876,7]
[314132156,1708015840323,-500.0,0.00032876,7]
[314132157,1708015840334,-491.43111383,0.00032876,7]
[314132160,1708015840344,-500.0,0.00032876,7]
[314132161,1708015840357,-500.0,0.00032876,7]
[314132162,1708015840366,-500.0,0.00032876,7]
[314132163,1708015840375,-366.70770571,0.00032876,7]
[314132164,1708015840384,-502.92013251,0.00032876,7]
[314132165,1708015840393,-151.0,0.00032876,2]
[314132166,1708015840403,-500.0,0.00032876,7]
[314132167,1708015840412,-500.0,0.00032876,7]
[314132168,1708015840421,-151.0,0.00032876,2]
[314132169,1708015840430,-500.0,0.00032876,7]
[314132170,1708015840440,-151.0,0.00032876,2]
[314132171,1708015840450,-500.0,0.00032876,7]
[314132172,1708015840459,-151.0,0.00032876,2]
[314132173,1708015840468,-500.0,0.00032876,7]
[314132175,1708015840477,-151.0,0.00032876,2]
[314132176,1708015840486,-500.0,0.00032876,7]
[314132178,1708015840495,-234.416285,0.00032876,2]
[314132180,1708015840504,-500.0,0.00032876,7]
[314132183,1708015840514,-180.1604717,0.00032876,7]
[314132185,1708015840523,-506.95127322,0.00032876,7]
[314132187,1708015840532,-514.91981209,0.00032876,7]
[314132188,1708015840541,-500.0,0.00032876,7]
[314132190,1708015840550,-500.0,0.00032876,7]
[314132192,1708015840559,-500.0,0.00032876,7]
[314132194,1708015840570,-500.0,0.00032876,7]
[314132196,1708015840579,-324.36232013,0.00032876,7]
[314132198,1708015840589,-500.0,0.00032876,7]
[314132200,1708015840598,-521.3877079,0.00032876,7]
[314132203,1708015840607,-500.0,0.00032876,7]
[314132205,1708015840617,-513.49465478,0.00032876,7]
[314132206,1708015840627,-500.0,0.00032876,7]
[314132208,1708015840636,-506.99908873,0.00032876,7]
[314132210,1708015840645,-592.75,0.00032876,7]
[314132212,1708015840654,-592.75,0.00032876,7]
[314132214,1708015840664,-592.75,0.00032876,7]
[314132216,1708015840673,-592.75,0.00032876,7]
[314132219,1708015840683,-592.75,0.00032876,7]
[314132221,1708015840692,-592.75,0.00032876,7]
[314132222,1708015840703,-592.75,0.00032876,7]
[314132224,1708015840712,-592.75,0.00032876,7]
[314132226,1708015840721,-592.75,0.00032876,7]
[314132228,1708015840730,-592.75,0.00032876,7]
[314132230,1708015840739,-592.75,0.00032876,7]
[314132232,1708015840749,-592.75,0.00032876,7]
[314132234,1708015840758,-592.75,0.00032876,7]
[314132236,1708015840767,-592.75,0.00032876,7]
[314132238,1708015840776,-592.75,0.00032876,7]
[314132240,1708015840785,-592.75,0.00032876,7]
[314132242,1708015840794,-592.75,0.00032876,7]
[314132244,1708015840803,-592.75,0.00032876,7]
[314132246,1708015840812,-592.75,0.00032876,7]
[314132248,1708015840821,-592.75,0.00032876,7]
[314132250,1708015840831,-592.75,0.00032876,7]
[314132252,1708015840840,-592.75,0.00032876,7]
[314132254,1708015840849,-592.75,0.00032876,7]
[314132256,1708015840858,-592.90160432,0.00032876,7]
[314132258,1708015840867,-500.0,0.00032876,7]
[314132260,1708015840876,-582.57474798,0.00032876,7]
[314132262,1708015840886,-500.0,0.00032876,7]
[314132264,1708015840895,-500.0,0.00032876,7]
[314132266,1708015840905,-369.93223796,0.00032876,7]
[314132268,1708015840913,-500.0,0.00032876,7]
[314132270,1708015840923,-500.0,0.00032876,7]
[314132272,1708015840932,-500.0,0.00032876,7]
[314132274,1708015840941,-500.0,0.00032876,7]
[314132276,1708015840951,-500.0,0.00032876,7]
[314132278,1708015840961,-347.51683518,0.00032876,7]
[314132280,1708015840970,-553.86325545,0.00032876,7]
[314132282,1708015840979,-500.0,0.00032876,7]
[314132283,1708015840989,-500.0,0.00032876,7]
[314132284,1708015840998,-500.0,0.00032876,7]
[314132285,1708015841007,-500.0,0.00032876,7]
[314132286,1708015841017,-500.0,0.00032876,7]
[314132287,1708015841026,-500.0,0.00032876,7]
[314132288,1708015841036,-500.0,0.00032876,7]
[314132289,1708015841046,-500.0,0.00032876,7]
[314132290,1708015841055,-305.77710276,0.00032876,7]
[314132291,1708015841064,-901.11,0.00032876,7]
[314132292,1708015841074,-901.11,0.00032876,7]
[314132293,1708015841083,-901.11,0.00032876,7]
[314132294,1708015841092,-901.11,0.00032876,7]
[314132295,1708015841102,-901.11,0.00032876,7]
[314132296,1708015841111,-901.11,0.00032876,7]
[314132297,1708015841120,-901.11,0.00032876,7]
[314132298,1708015841130,-901.11,0.00032876,7]
[314132299,1708015841139,-901.11,0.00032876,7]
[314132300,1708015841149,-901.11,0.00032876,7]
[314132301,1708015841158,-500.0,0.00032876,7]
[314132302,1708015841168,-901.11,0.00032876,7]
[314132303,1708015841177,-901.11,0.00032876,7]
[314132304,1708015841187,-500.0,0.00032876,7]
[314132305,1708015841198,-500.0,0.00032876,7]
[314132306,1708015841207,-901.11,0.00032876,7]
[314132307,1708015841218,-901.11,0.00032876,7]
[314132308,1708015841227,-579.26416419,0.00032876,7]
[314132309,1708015841237,-901.11,0.00032876,7]
[314132310,1708015841246,-901.11,0.00032876,7]
[314132311,1708015841255,-901.11,0.00032876,7]
[314132312,1708015841265,-901.11,0.00032876,7]
[314132313,1708015841275,-901.11,0.00032876,7]
[314132314,1708015841284,-901.11,0.00032876,7]
[314132315,1708015841294,-901.11,0.00032876,7]
[314132316,1708015841303,-901.11,0.00032876,7]
[314132317,1708015841312,-504.03989668,0.00032876,7]
[314132318,1708015841322,-901.11,0.00032876,7]
[314132319,1708015841331,-901.21190769,0.00032876,7]
[314132321,1708015841341,-500.0,0.00032876,7]
[314132323,1708015841353,-544.4013891,0.00032876,7]
[314132325,1708015841362,-500.0,0.00032876,7]
[314132327,1708015841371,-500.0,0.00032876,7]
[314132329,1708015841381,-500.0,0.00032876,7]
[314132331,1708015841391,-500.0,0.00032876,7]
[314132333,1708015841400,-500.0,0.00032876,7]
[314132335,1708015841409,-541.15284659,0.00032876,7]
[314132337,1708015841419,-393.93306636,0.00032876,7]
[314132338,1708015841429,-500.0,0.00032876,7]
[314132340,1708015841438,-500.0,0.00032876,7]
[314132342,1708015841449,-514.30150102,0.00032876,7]
[314132344,1708015841458,-500.0,0.00032876,7]
[314132346,1708015841467,-500.0,0.00032876,7]
[314132348,1708015841476,-500.0,0.00032876,7]
[314132350,1708015841485,-500.0,0.00032876,7]
[314132351,1708015841494,-500.0,0.00032876,7]
[314132353,1708015841503,-500.0,0.00032876,7]
[314132363,1708015841575,-500.0,0.00032876,7]
[314132365,1708015841594,-500.0,0.00032876,7]
[314132367,1708015841604,-500.0,0.00032876,7]
[314132369,1708015841613,-582.68564277,0.00032876,7]
[314132371,1708015841622,-405.01676378,0.00032876,7]
[314132373,1708015841631,-500.0,0.00032876,7]
[314132375,1708015841641,-500.0,0.00032876,7]
[314132377,1708015841650,-503.52195286,0.00032876,7]
[314132379,1708015841659,-638.34637956,0.00032876,7]
[314132381,1708015841669,-500.0,0.00032876,7]
[314132383,1708015841678,-512.21825011,0.00032876,7]
[314132385,1708015841686,-500.0,0.00032876,7]
[314132387,1708015841696,-500.0,0.00032876,7]
[314132389,1708015841706,-500.0,0.00032876,7]
[314132391,1708015841715,-535.05508414,0.00032876,7]
[314132393,1708015841724,-500.0,0.00032876,7]
[314132395,1708015841733,-500.0,0.00032876,7]
[314132397,1708015841742,-500.0,0.00032876,7]
[314132399,1708015841751,-500.0,0.00032876,7]
[314132401,1708015841760,-500.0,0.00032876,7]
[314132403,1708015841769,-335.68210673,0.00032876,7]
[314132405,1708015841778,-500.0,0.00032876,7]
[314132407,1708015841788,-500.0,0.00032876,7]
[314132409,1708015841797,-161.36936577,0.00032876,7]
[314132411,1708015841806,-622.02392282,0.00032876,7]
[314132413,1708015841815,-500.0,0.00032876,7]
[314132415,1708015841824,-503.66058879,0.00032876,7]
[314132417,1708015841833,-507.50151569,0.00032876,7]
[314132419,1708015841843,-500.0,0.00032876,7]
[314132421,1708015841852,-500.0,0.00032876,7]
[314132423,1708015841862,-514.74520336,0.00032876,7]
[314132425,1708015841871,-507.21096205,0.00032876,7]
[314132427,1708015841880,-506.44463582,0.00032876,7]
[314132429,1708015841889,-511.75666933,0.00032876,7]
[314132431,1708015841899,-719.02,0.00032876,7]
[314132433,1708015841908,-719.02,0.00032876,7]
[314132435,1708015841917,-719.02,0.00032876,7]
[314132437,1708015841926,-719.02,0.00032876,7]
[314132439,1708015841936,-719.02,0.00032876,7]
[314132441,1708015841945,-719.02,0.00032876,7]
[314132443,1708015841957,-719.02,0.00032876,7]
[314132445,1708015841966,-719.02,0.00032876,7]
[314132447,1708015841975,-719.02,0.00032876,7]
[314132449,1708015841983,-719.02,0.00032876,7]
[314132451,1708015841992,-719.02,0.00032876,7]
[314132453,1708015842001,-719.02,0.00032876,7]
[314132455,1708015842010,-719.02,0.00032876,7]
[314132457,1708015842019,-719.02,0.00032876,7]
[314132459,1708015842029,-719.02,0.00032876,7]
[314132461,1708015842038,-719.02,0.00032876,7]
[314132463,1708015842047,-719.02,0.00032876,7]
[314132465,1708015842057,-719.02,0.00032876,7]
[314132467,1708015842067,-719.02,0.00032876,7]
[314132469,1708015842076,-719.02,0.00032876,7]
[314132472,1708015842085,-719.02,0.00032876,7]
[314132473,1708015842094,-719.02,0.00032876,7]
[314132475,1708015842104,-328.32247603,0.00032876,7]
[314132478,1708015842113,-719.02,0.00032876,7]
[314132479,1708015842122,-719.08513758,0.00032876,7]
[314132481,1708015842132,-500.0,0.00032876,7]
[314132483,1708015842141,-415.01598404,0.00032876,7]
[314132486,1708015842150,-557.13823248,0.00032876,7]
[314132488,1708015842160,-500.0,0.00032876,7]
[314132490,1708015842169,-500.0,0.00032876,7]
[314132491,1708015842179,-500.0,0.00032876,7]
[314132493,1708015842187,-500.0,0.00032876,7]
[314132495,1708015842197,-505.81901091,0.00032876,7]
[314132497,1708015842207,-500.0,0.00032876,7]
[314132499,1708015842216,-518.16020758,0.00032876,7]
[314132501,1708015842225,-500.0,0.00032876,7]
[314132503,1708015842233,-531.7811792,0.00032876,7]
[314132504,1708015842242,-500.0,0.00032876,7]
[314132506,1708015842252,-212.18676146,0.00032876,7]
[314132508,1708015842261,-500.0,0.00032876,7]
[314132510,1708015842269,-511.07894119,0.00032876,7]
[314132512,1708015842279,-503.85655157,0.00032876,7]
[314132514,1708015842288,-506.84728892,0.00032876,7]
[314132516,1708015842297,-500.0,0.00032876,7]
[314132518,1708015842307,-500.0,0.00032876,7]
[314132520,1708015842316,-500.0,0.00032876,7]
[314132522,1708015842326,-500.0,0.00032876,7]
[314132524,1708015842338,-500.0,0.00032876,7]
[314132526,1708015842350,-500.0,0.00032876,7]
[314132528,1708015842360,-500.0,0.00032876,7]
[314132530,1708015842369,-500.0,0.00032876,7]
[314132532,1708015842379,-500.0,0.00032876,7]
[314132534,1708015842389,-500.0,0.00032876,7]
[314132536,1708015842398,-500.0,0.00032876,7]
[314132538,1708015842407,-500.0,0.00032876,7]
[314132540,1708015842416,-508.26343215,0.00032876,7]
[314132542,1708015842430,-508.39706572,0.00032876,7]
[314132544,1708015842441,-260.37284919,0.00032876,7]
[314132546,1708015842454,-437.52618809,0.00032876,7]
[314132548,1708015842464,-504.12580923,0.00032876,7]
[314132550,1708015842475,-516.26871262,0.00032876,7]
[314132552,1708015842484,-500.0,0.00032876,7]
[314132554,1708015842493,-583.6952767,0.00032876,7]
[314132556,1708015842503,-500.0,0.00032876,7]
[314132558,1708015842512,-500.0,0.00032876,7]
[314132560,1708015842521,-500.0,0.00032876,7]
[314132562,1708015842531,-500.0,0.00032876,7]
[314132564,1708015842540,-521.9118982,0.00032876,7]
[314132566,1708015842549,-500.0,0.00032876,7]
[314132568,1708015842559,-1999.91,0.00032876,2]
[314132570,1708015842569,-554.07303476,0.00032876,7]
[314132572,1708015842578,-1999.91,0.00032876,2]
[314132574,1708015842587,-1999.91,0.00032876,2]
[314132576,1708015842597,-1999.91,0.00032876,2]
[314132578,1708015842605,-1999.91,0.00032876,2]
[314132580,1708015842615,-1999.91,0.00032876,2]
[314132582,1708015842625,-1999.91,0.00032876,2]
[314132584,1708015842634,-1999.91,0.00032876,2]
[314132586,1708015842643,-1999.91,0.00032876,2]
[314132589,1708015842652,-1999.91,0.00032876,2]
[314132591,1708015842662,-1999.91,0.00032876,2]
[314132593,1708015842672,-500.0,0.00032876,7]
[314132595,1708015842681,-1999.91,0.00032876,2]
[314132598,1708015842690,-500.0,0.00032876,7]
[314132600,1708015842701,-1999.91,0.00032876,2]
[314132602,1708015842710,-500.0,0.00032876,7]
[314132604,1708015842720,-1999.91,0.00032876,2]
[314132607,1708015842729,-516.39323085,0.00032876,7]
[314132609,1708015842738,-530.95094477,0.00032876,7]
[314132611,1708015842747,-1999.91,0.00032876,2]
[314132613,1708015842757,-1999.91,0.00032876,2]
[314132615,1708015842765,-1999.91,0.00032876,2]
[314132617,1708015842774,-1999.91,0.00032876,2]
[314132619,1708015842783,-1999.91,0.00032876,2]
[314132622,1708015842792,-500.0,0.00032876,7]
[314132624,1708015842801,-1999.91,0.00032876,2]
[314132626,1708015842810,-500.0,0.00032876,7]
[314132628,1708015842819,-500.0,0.00032876,7]
[314132630,1708015842828,-1999.91,0.00032876,2]
[314132632,1708015842837,-500.0,0.00032876,7]
[314132634,1708015842846,-500.0,0.00032876,7]
[314132636,1708015842856,-1999.91,0.00032876,2]
[314132638,1708015842865,-500.0,0.00032876,7]
[314132640,1708015842874,-1999.91,0.00032876,2]
[314132642,1708015842883,-509.63478831,0.00032876,7]
[314132644,1708015842892,-2000.07,0.00032876,2]
[314132646,1708015842901,-500.0,0.00032876,7]
[314132649,1708015842910,-500.0,0.00032876,7]
[314132651,1708015842919,-500.0,0.00032876,2]
[314132654,1708015842929,-466.3663281,0.00032876,7]
[314132657,1708015842938,-500.0,0.00032876,2]
[314132659,1708015842950,-500.0,0.00032876,2]
[314132662,1708015842959,-500.0,0.00032876,2]
[314132665,1708015842968,-500.0,0.00032876,2]
[314132667,1708015842977,-220.0,0.00032876,2]
[314132670,1708015842986,-500.0,0.00032876,2]
[314132673,1708015842995,-220.0,0.00032876,2]
[314132675,1708015843004,-500.0,0.00032876,2]
[314132678,1708015843014,-220.0,0.00032876,2]
[314132680,1708015843023,-500.0,0.00032876,2]
[314132683,1708015843032,-183.67337361,0.00032876,2]
[314132686,1708015843042,-500.0,0.00032876,2]
[314132689,1708015843051,-500.0,0.00032876,2]
[314132691,1708015843060,-500.0,0.00032876,2]
[314132694,1708015843070,-500.0,0.00032876,2]
[314132697,1708015843078,-500.0,0.00032876,2]
[314132699,1708015843087,-500.0,0.00032876,2]
[314132701,1708015843096,-500.0,0.00032876,2]
[314132702,1708015843104,-500.0,0.00032876,2]
[314132703,1708015843112,-500.0,0.00032876,2]
[314132704,1708015843185,-500.0,0.00032876,2]
[314132705,1708015843195,-529.06515912,0.00032876,2]
[314132706,1708015843206,-500.0,0.00032876,7]
[314132707,1708015843215,-500.0,0.00032876,7]
[314132708,1708015843223,-500.0,0.00032876,7]
[314132709,1708015843232,-500.0,0.00032876,7]
[314132710,1708015843241,-500.0,0.00032876,7]
[314132711,1708015843250,-500.0,0.00032876,7]
[314132712,1708015843258,-500.0,0.00032876,7]
[314132714,1708015843269,-648.0,0.00032876,7]
[314132716,1708015843279,-500.0,0.00032876,7]
[314132718,1708015843288,-2973.26,0.00032876,7]
[314132720,1708015843297,-162.27036822,0.00032876,7]
[314132722,1708015843306,-2973.26,0.00032876,7]
[314132724,1708015843315,-2973.26,0.00032876,7]
[314132726,1708015843325,-2973.26,0.00032876,7]
[314132728,1708015843334,-2973.26,0.00032876,7]
[314132730,1708015843345,-2973.26,0.00032876,7]
[314132732,1708015843356,-2973.26,0.00032876,7]
[314132734,1708015843365,-2973.26,0.00032876,7]
[314132736,1708015843374,-659.67,0.00032876,7]
[314132738,1708015843384,-2973.26,0.00032876,7]
[314132740,1708015843394,-659.67,0.00032876,7]
[314132742,1708015843402,-659.67,0.00032876,7]
[314132744,1708015843412,-2973.26,0.00032876,7]
[314132746,1708015843420,-659.67,0.00032876,7]
[314132748,1708015843430,-2973.26,0.00032876,7]
[314132751,1708015843440,-659.67,0.00032876,7]
[314132755,1708015843450,-514.17615072,0.00032876,7]
[314132757,1708015843460,-2973.26,0.00032876,7]
[314132761,1708015843469,-659.67,0.00032876,7]
[314132763,1708015843479,-2973.26,0.00032876,7]
[314132764,1708015843488,-659.67,0.00032876,7]
[314132765,1708015843497,-2973.26,0.00032876,7]
[314132766,1708015843507,-659.67,0.00032876,7]
[314132767,1708015843516,-2973.26,0.00032876,7]
[314132768,1708015843526,-2973.26,0.00032876,7]
[314132769,1708015843536,-659.67,0.00032876,7]
[314132770,1708015843545,-2973.26,0.00032876,7]
[314132771,1708015843554,-500.0,0.00032876,7]
[314132772,1708015843564,-659.67,0.00032876,7]
[314132773,1708015843573,-500.0,0.00032876,7]
[314132774,1708015843583,-659.67,0.00032876,7]
[314132775,1708015843593,-2973.26,0.00032876,7]
[314132776,1708015843602,-500.0,0.00032876,7]
[314132777,1708015843613,-659.67,0.00032876,7]
[314132778,1708015843622,-2973.26,0.00032876,7]
[314132780,1708015843631,-582.49891796,0.00032876,7]
[314132781,1708015843641,-659.67,0.00032876,7]
[314132782,1708015843650,-2973.26,0.00032876,7]
[314132783,1708015843660,-659.67,0.00032876,7]
[314132784,1708015843670,-2973.26,0.00032876,7]
[314132785,1708015843680,-659.67,0.00032876,7]
[314132786,1708015843689,-2973.26,0.00032876,7]
[314132787,1708015843698,-659.67,0.00032876,7]
[314132788,1708015843708,-2973.26,0.00032876,7]
[314132789,1708015843717,-659.67,0.00032876,7]
[314132790,1708015843726,-2973.48733382,0.00032876,7]
[314132792,1708015843736,-659.67,0.00032876,7]
[314132793,1708015843745,-659.67,0.00032876,7]
[314132794,1708015843755,-659.67,0.00032876,7]
[314132795,1708015843764,-505.49748624,0.00032876,7]